bitfinex/quotes_SOLUSD_20250307
["timestamp","ask_amount","ask_price","bid_price","bid_amount"]
[1741307295901,0.14216157,138.28,138.19,0.03]
[1741307296100,71.6,138.29,138.19,0.03]
[1741307296101,0.14216157,138.26,138.19,0.03]
[1741307296607,50.14216157,138.24,138.15,0.03]
[1741307296794,129.45858297,138.27,138.15,0.03]
[1741307296795,0.14216157,138.22,138.15,0.03]
[1741307296997,21.6,138.21,138.15,0.03]
[1741307297196,21.6,138.26,138.15,0.03]
[1741307297498,21.6,138.25,138.15,0.03]
[1741307297695,21.6,138.24,138.15,0.03]
[1741307297892,21.6,138.23,138.15,0.03]
[1741307298098,21.6,138.22,138.15,0.03]
[1741307298305,21.6,138.26,138.15,0.03]
[1741307298507,21.6,138.29,138.15,0.03]
[1741307298693,21.6,138.28,138.19,312.0]
[1741307299008,21.6,138.27,138.19,312.0]
[1741307299210,21.6,138.26,138.15,0.03]
[1741307299410,21.6,138.34,138.15,0.03]
[1741307299612,21.6,138.36,138.21,0.28432314]
[1741307299915,21.6,138.4,138.25,43.94629029]
[1741307300119,21.6,138.39,138.25,0.14216157]
[1741307300308,21.6,138.39,138.25,0.28432314]
[1741307300496,21.6,138.44,138.27,0.28432314]
[1741307300697,50.0,138.42,138.2,0.14216157]
[1741307300999,0.033,138.3,138.22,0.14216157]
[1741307301296,21.6,138.44,138.29,44.23061343]
[1741307301511,20.09857411,138.47,138.21,20.0]
[1741307301512,21.6,138.46,138.33,0.14216157]
[1741307301809,20.09857411,138.47,138.37,43.94629029]
[1741307302013,21.6,138.56,138.4,43.94629029]
[1741307302212,21.6,138.55,138.46,312.0]
[1741307302517,11.0579,138.58,138.36,44.08845186]
[1741307302518,21.6,138.54,138.36,44.08845186]
[1741307302812,21.6,138.56,138.43,0.14216157]
[1741307303014,21.6,138.55,138.4,156.58]
[1741307303316,21.6,138.54,138.35,5.7707]
[1741307303486,21.6,138.53,138.31,1.5172761]
[1741307303687,0.14216157,138.5,138.3,156.58]
[1741307303990,50.0,138.44,138.24,5.6765]
[1741307304190,50.0,138.44,138.21,156.58]
[1741307304191,50.0,138.4,138.19,43.94629029]
[1741307304415,0.14216157,138.36,138.15,5.7065]
[1741307304596,0.14216157,138.34,138.15,5.7065]
[1741307304792,0.14216157,138.32,138.15,0.03]
[1741307304994,21.6,138.32,138.19,43.94629029]
[1741307305314,21.6,138.38,138.25,43.94629029]
[1741307305505,127.45858297,138.45,138.31,312.0]
[1741307305696,21.6,138.44,138.31,312.0]
[1741307305905,21.6,138.43,138.26,43.94629029]
[1741307306093,21.6,138.47,138.27,44.23061343]
[1741307306292,21.6,138.46,138.3,0.14216157]
[1741307306504,21.6,138.45,138.31,1.51777813]
[1741307306818,20.09857411,138.6,138.3,1.51767616]
[1741307306819,21.6,138.44,138.3,1.51767616]
[1741307306994,2.0,138.53,138.31,0.14216157]
[1741307307199,21.6,138.52,138.3,1.80177867]
[1741307307399,21.6,138.51,138.34,0.28432314]
[1741307307599,21.6,138.5,138.38,0.14216157]
[1741307307800,21.6,138.57,138.41,43.94629029]
[1741307308012,21.6,138.56,138.43,0.28432314]
[1741307308209,20.09857411,138.6,138.45,0.14216157]
[1741307308210,21.6,138.59,138.45,0.14216157]
[1741307308517,21.6,138.63,138.5,44.08845186]
[1741307308716,21.6,138.64,138.52,0.14216157]
[1741307308917,21.6,138.64,138.58,312.0]
[1741307309222,21.6,138.63,138.5,0.14216157]
[1741307309391,21.6,138.62,138.46,11.5116]
[1741307309592,21.6,138.64,138.43,0.28432314]
[1741307309903,21.6,138.63,138.49,0.14216157]
[1741307310217,21.6,138.62,138.5,1.51542482]
[1741307310439,21.6,138.64,138.52,0.28432314]
[1741307310618,20.09857411,138.65,138.54,44.23061343]
[1741307310918,20.09857411,138.65,138.53,1.51481804]
[1741307310919,20.09857411,138.65,138.56,0.14216157]
[1741307311219,20.09857411,138.65,138.52,0.28432314]
[1741307311419,41.69857411,138.65,138.52,0.14216157]
[1741307311622,20.09857411,138.65,138.53,45.60359763]
[1741307311802,21.6,138.66,138.52,0.14216157]
[1741307311998,21.6,138.65,138.51,1.51514033]
[1741307312315,21.6,138.64,138.55,312.0]
[1741307312507,21.6,138.66,138.55,312.0]
[1741307312703,0.033,138.67,138.53,0.28432314]
[1741307312911,21.633,138.67,138.54,0.28432314]
[1741307313205,21.633,138.67,138.54,1.5145598]
[1741307313408,21.6,138.66,138.52,0.14216157]
[1741307313608,21.74216157,138.65,138.52,0.14216157]
[1741307313811,0.14216157,138.63,138.5,156.58]
[1741307314011,0.14216157,138.61,138.43,1.3209358]
[1741307314309,0.14216157,138.59,138.4,156.48]
[1741307314502,0.14216157,138.59,138.26,50.0]
[1741307314503,0.14216157,138.57,138.31,156.42]
[1741307314692,0.14216157,138.55,138.35,43.94629029]
[1741307314894,0.14216157,138.53,138.32,2.8386736]
[1741307315112,0.14216157,138.51,138.31,156.42]
[1741307315423,21.74216157,138.5,138.32,45.46378791]
[1741307315595,21.6,138.49,138.37,312.0]
[1741307315803,21.6,138.48,138.37,312.0]
[1741307315998,21.6,138.56,138.4,43.94629029]
[1741307316196,21.6,138.55,138.39,43.94629029]
[1741307316519,21.6,138.54,138.42,0.28432314]
[1741307316719,21.6,138.6,138.46,0.14216157]
[1741307316895,21.6,138.59,138.46,1.65779011]
[1741307317095,21.6,138.63,138.47,0.14216157]
[1741307317309,21.6,138.62,138.49,0.14216157]
[1741307317516,21.6,138.62,138.49,1.65755204]
[1741307317716,21.6,138.61,138.5,0.14216157]
[1741307318023,21.6,138.6,138.44,156.42]
[1741307318217,11.22756157,138.56,138.29,175.7052]
[1741307318420,21.6,138.55,138.35,2.0]
[1741307318598,21.6,138.54,138.36,1.5163114]
[1741307318808,21.6,138.53,138.36,47.46260169]
[1741307319009,21.6,138.63,138.45,0.14216157]
[1741307319205,21.6,138.63,138.49,312.0]
[1741307319404,21.6,138.63,138.5,1.51554352]
[1741307319606,21.6,138.62,138.43,0.28432314]
[1741307319924,21.6,138.61,138.45,44.23061343]
[1741307320127,21.6,138.61,138.47,0.14216157]
[1741307320433,21.6,138.63,138.49,44.23061343]
[1741307320718,0.033,138.64,138.54,0.28432314]
[1741307321039,0.033,138.64,138.56,44.23061343]
[1741307321243,0.033,138.64,138.56,0.14216157]
[1741307321409,0.033,138.64,138.46,11.57304235]
[1741307321609,21.6,138.63,138.46,11.3598]
[1741307321839,0.14216157,138.61,138.45,1.51589345]
[1741307322138,21.6,138.61,138.45,3.51545782]
[1741307322338,21.6,138.63,138.52,0.28432314]
[1741307322499,21.6,138.62,138.5,1.51503275]
[1741307322705,21.6,138.61,138.47,312.0]
[1741307322905,21.6,138.6,138.48,1.51602764]
[1741307323131,21.6,138.63,138.52,0.28432314]
[1741307323337,21.6,138.62,138.49,0.14216157]
[1741307323637,0.14216157,138.6,138.44,156.4]
[1741307323816,21.6,138.59,138.45,1.51603789]
[1741307324004,0.14216157,138.6,138.44,156.4]
[1741307324209,0.14216157,138.62,138.44,156.4]
[1741307324523,0.14216157,138.6,138.44,156.4]
[1741307324730,0.14216157,138.58,138.38,54.86709029]
[1741307325040,0.14216157,138.56,138.39,45.46272077]
[1741307325213,0.14216157,138.56,138.4,1.51641443]
[1741307325417,21.6,138.55,138.41,43.94629029]
[1741307325728,21.6,138.54,138.38,10.9208]
[1741307325933,21.6,138.53,138.35,156.36]
[1741307326149,21.6,138.52,138.36,313.51713213]
[1741307326324,21.6,138.52,138.37,43.94629029]
[1741307326630,21.6,138.51,138.37,43.94629029]
[1741307326935,21.6,138.5,138.36,43.94629029]
[1741307327142,21.6,138.55,138.39,44.08845186]
[1741307327441,21.6,138.54,138.41,0.14216157]
[1741307327728,21.6,138.55,138.42,45.46264378]
[1741307327936,21.6,138.54,138.4,43.94629029]
[1741307328141,0.14216157,138.52,138.37,156.38]
[1741307328307,0.14216157,138.5,138.37,156.38]
[1741307328639,0.14216157,138.48,138.3,0.03]
[1741307328808,0.14216157,138.46,138.3,0.03]
[1741307329003,32.9868,138.47,138.3,0.03]
[1741307329004,50.0,138.41,138.3,0.03]
[1741307329223,0.14216157,138.39,138.3,0.03]
[1741307329426,50.14216157,138.37,138.18,156.41]
[1741307329622,50.14216157,138.37,138.19,312.0]
[1741307329623,0.14216157,138.31,138.19,312.0]
[1741307329826,2.0,138.35,138.18,0.03]
[1741307329827,21.6,138.3,138.18,0.03]
[1741307330007,71.74216157,138.29,138.18,0.03]
[1741307330212,0.14216157,138.27,138.18,0.03]
[1741307330449,0.14216157,138.25,138.18,0.03]
[1741307330733,0.14216157,138.25,138.16,0.03]
[1741307330734,0.14216157,138.23,138.16,0.03]
[1741307330905,82.0,138.29,138.16,0.03]
[1741307330906,21.6,138.22,138.16,0.03]
[1741307331314,21.6,138.28,138.16,0.03]
[1741307331610,0.14216157,138.29,138.16,0.03]
[1741307331611,21.6,138.27,138.16,0.03]
[1741307331823,0.14216157,138.26,138.16,0.03]
[1741307332007,21.6,138.27,138.16,0.03]
[1741307332211,21.74216157,138.26,138.16,0.03]
[1741307332410,21.6,138.25,138.16,0.03]
[1741307332631,21.6,138.24,138.16,0.03]
[1741307332933,21.6,138.23,138.16,0.03]
[1741307333530,71.6,138.3,138.16,0.03]
[1741307333715,21.6,138.29,138.16,0.03]
[1741307333913,21.6,138.28,138.17,44.26191462]
[1741307334123,21.6,138.3,138.16,44.14975305]
[1741307334326,21.6,138.29,138.17,0.28432314]
[1741307334543,21.6,138.3,138.17,44.33601949]
[1741307334830,21.6,138.29,138.16,45.66852397]
[1741307335032,21.6,138.29,138.17,44.26191462]
[1741307335252,21.6,138.38,138.19,0.14216157]
[1741307335548,21.6,138.38,138.16,0.03]
[1741307335549,21.6,138.37,138.24,44.11975305]
[1741307335723,21.6,138.36,138.23,44.11975305]
[1741307335924,21.6,138.38,138.25,44.11975305]
[1741307336136,21.6,138.37,138.21,1.51820072]
[1741307336311,21.6,138.36,138.17,44.11975305]
[1741307336516,0.14216157,138.34,138.16,0.03]
[1741307336737,0.14216157,138.32,138.16,0.03]
[1741307337043,21.6,138.31,138.23,312.0]
[1741307337345,21.6,138.3,138.17,44.11975305]
[1741307337536,0.14216157,138.36,138.21,44.26191462]
[1741307337840,0.14216157,138.34,138.17,44.26191462]
[1741307338039,0.14216157,138.32,138.16,45.66815349]
[1741307338231,0.14216157,138.3,138.16,0.03]
[1741307338561,21.6,138.29,138.16,0.03]
[1741307338843,0.14216157,138.28,138.16,0.03]
[1741307339143,21.6,138.27,138.16,0.03]
[1741307339326,21.6,138.26,138.16,0.03]
[1741307339521,21.6,138.34,138.17,44.26191462]
[1741307339850,21.6,138.33,138.2,0.28432314]
[1741307340060,21.6,138.4,138.28,0.14216157]
[1741307340228,21.6,138.39,138.29,1.65970245]
[1741307340545,21.6,138.38,138.3,0.14216157]
[1741307340843,21.6,138.37,138.31,0.14216157]
[1741307341150,21.6,138.46,138.36,0.14216157]
[1741307341321,21.6,138.45,138.39,0.14216157]
[1741307341524,20.09857411,138.49,138.42,44.11975305]
[1741307341525,21.6,138.48,138.42,44.11975305]
[1741307341728,21.6,138.47,138.38,156.58]
[1741307341945,21.6,138.46,138.29,156.58]
[1741307342154,21.74216157,138.45,138.21,5.7901]
[1741307342353,0.14216157,138.43,138.24,20.0]
[1741307342523,21.6,138.42,138.33,44.11975305]
[1741307342724,21.6,138.5,138.38,44.11975305]
[1741307342959,21.6,138.49,138.41,0.14216157]
[1741307343247,20.09857411,138.53,138.37,0.14216157]
[1741307343248,21.6,138.48,138.37,0.14216157]
[1741307343455,21.6,138.47,138.43,312.0]
[1741307343657,20.09857411,138.53,138.43,312.0]
[1741307343658,21.6,138.46,138.43,312.0]
[1741307343836,135.9,138.45,138.28,0.14216157]
[1741307344038,21.6,138.44,138.32,44.11975305]
[1741307344349,21.6,138.43,138.33,1.51728171]
[1741307344522,21.6,138.42,138.33,1.51728171]
[1741307344727,21.6,138.41,138.36,312.0]
[1741307345039,21.6,138.4,138.36,312.0]
[1741307345363,135.9,138.39,138.21,5.7901]
[1741307345654,50.0,138.45,138.25,44.11975305]
[1741307345944,11.2648,138.39,138.19,156.54]
[1741307346161,71.6,138.38,138.19,200.65975305]
[1741307346445,21.6,138.37,138.29,44.11975305]
[1741307346647,21.6,138.45,138.36,44.26191462]
[1741307346825,21.6,138.44,138.37,1.51695706]
[1741307347022,21.6,138.54,138.38,0.14216157]
[1741307347255,21.6,138.53,138.38,1.51678911]
[1741307347551,21.6,138.52,138.41,0.14216157]
[1741307347759,21.6,138.54,138.46,0.14216157]
[1741307347923,0.033,138.55,138.52,0.14216157]
[1741307348122,0.033,138.55,138.52,44.11975305]
[1741307348343,0.033,138.55,138.52,312.0]
[1741307348863,21.6,138.54,138.47,44.26191462]
[1741307349161,0.033,138.55,138.52,44.11975305]
[1741307349459,0.033,138.55,138.51,1.51524088]
[1741307349749,21.6,138.54,138.51,1.51524088]
[1741307349952,0.033,138.55,138.54,0.14216157]
[1741307350138,0.033,138.55,138.54,45.63467032]
[1741307350333,0.033,138.55,138.54,44.26191462]
[1741307350654,21.6,138.6,138.55,0.14216157]
[1741307350862,21.6,138.59,138.55,1.51476164]
[1741307351032,21.6,138.59,138.54,44.26191462]
[1741307351225,21.6,138.59,138.54,0.14216157]
[1741307351540,21.6,138.58,138.43,7.8236]
[1741307351746,0.033,138.64,138.43,7.8236]
[1741307351747,21.6,138.57,138.46,44.11975305]
[1741307351942,21.6,138.57,138.45,44.11975305]
[1741307352264,0.033,138.55,138.52,44.11975305]
[1741307352430,21.6,138.54,138.46,1.51513963]
[1741307352625,0.033,138.55,138.52,44.11975305]
[1741307352823,21.6,138.54,138.53,0.14216157]
[1741307353019,0.033,138.55,138.53,45.77704621]
[1741307353238,21.6,138.54,138.5,44.11975305]
[1741307353462,0.033,138.55,138.43,7.3390506]
[1741307353463,21.6,138.53,138.43,7.3390506]
[1741307353629,21.6,138.52,138.4,156.46]
[1741307353826,21.6,138.51,138.4,156.46]
[1741307354137,21.6,138.54,138.5,44.11975305]
[1741307354341,0.033,138.55,138.52,0.28432314]
[1741307354553,0.033,138.55,138.54,0.14216157]
[1741307355057,0.033,138.55,138.54,45.89863917]
[1741307355230,0.033,138.55,138.54,357.89863917]
[1741307355428,0.033,138.64,138.58,0.14216157]
[1741307355635,0.033,138.64,138.63,45.7564776]
[1741307355841,0.033,138.64,138.63,47.41240657]
[1741307356042,0.033,138.67,138.64,0.14216157]
[1741307356245,0.033,138.67,138.66,45.89863917]
[1741307356445,0.033,138.67,138.66,91.5129552]
[1741307356647,0.033,138.72,138.71,0.28432314]
[1741307356946,0.033,138.74,138.71,47.41114341]
[1741307357159,0.033,138.74,138.72,45.89863917]
[1741307357359,0.033,138.74,138.73,0.28432314]
[1741307357529,0.033,138.74,138.73,47.41097136]
[1741307357724,0.033,138.74,138.71,1.51237172]
[1741307357954,0.033,138.74,138.68,1.51311555]
[1741307358162,21.6,138.73,138.65,156.36]
[1741307358350,21.6,138.72,138.67,45.7564776]
[1741307358533,0.033,138.74,138.72,0.14216157]
[1741307358733,0.033,138.74,138.73,312.14216157]
[1741307358931,0.033,138.74,138.73,312.0]
[1741307359142,0.033,138.74,138.68,0.14216157]
[1741307359348,0.033,138.74,138.7,0.14216157]
[1741307359546,0.033,138.74,138.71,47.12734195]
[1741307359873,20.09857411,138.82,138.74,0.14216157]
[1741307360177,21.633,138.85,138.78,0.28432314]
[1741307360342,21.633,138.85,138.81,45.61431603]
[1741307360540,21.6,138.84,138.8,45.7564776]
[1741307360737,21.6,138.84,138.79,156.28]
[1741307361034,21.6,138.83,138.79,156.28]
[1741307361260,21.6,138.84,138.81,45.61431603]
[1741307361460,0.033,138.85,138.83,45.7564776]
[1741307361640,21.6,138.84,138.82,1.51181284]
[1741307361841,21.633,138.85,138.79,45.61431603]
[1741307362047,21.6,138.84,138.8,1.51202622]
[1741307362249,21.6,138.83,138.76,45.61431603]
[1741307362460,0.033,138.85,138.8,45.61431603]
[1741307364968,21.6,138.8,138.71,156.18]
[1741307365145,21.6,138.79,138.67,312.0]
[1741307365465,21.6,138.78,138.62,212.94624946]
[1741307365664,21.6,138.77,138.62,212.94624946]
[1741307365972,21.6,138.76,138.69,56.90841103]
[1741307366173,21.6,138.82,138.74,0.14216157]
[1741307366471,21.6,138.81,138.73,58.27896785]
[1741307366644,21.6,138.8,138.68,56.76624946]
[1741307366848,21.6,138.79,138.69,58.27931188]
[1741307367162,21.6,138.78,138.67,56.76624946]
[1741307367341,21.6,138.77,138.63,58.27930264]
[1741307367544,21.6,138.76,138.68,56.76624946]
[1741307367856,21.6,138.84,138.72,0.28432314]
[1741307368042,21.6,138.83,138.66,0.14216157]
[1741307368243,21.6,138.82,138.72,56.76624946]
[1741307368450,21.6,138.81,138.73,312.14216157]
[1741307368767,21.6,138.8,138.64,56.76624946]
[1741307368948,21.74216157,138.79,138.62,212.94624946]
[1741307369150,21.6,138.78,138.63,1.5140003]
[1741307369464,21.6,138.77,138.69,56.76624946]
[1741307369762,21.6,138.84,138.72,0.28432314]
[1741307369961,21.6,138.83,138.73,1.51263198]
[1741307370272,0.14216157,138.81,138.63,1.51315077]
[1741307370460,0.14216157,138.81,138.63,1.51385185]
[1741307370653,0.14216157,138.81,138.62,212.94624946]
[1741307370654,13.71796157,138.79,138.62,156.18]
[1741307370853,0.14216157,138.74,138.62,156.18]
[1741307371174,0.14216157,138.69,138.6,0.03]
[1741307371467,0.14216157,138.67,138.6,0.03]
[1741307371646,0.14216157,138.65,138.52,156.14]
[1741307371844,21.6,138.64,138.52,156.14]
[1741307372049,0.14216157,138.6,138.43,68.42430334]
[1741307372272,23.6,138.59,138.43,1.51604537]
[1741307372575,11.6458,138.63,138.42,156.14]
[1741307372576,2.0,138.57,138.42,156.14]
[1741307372777,21.6,138.56,138.45,68.42430334]
[1741307372950,21.6,138.61,138.46,1.5156506]
[1741307373146,23.6,138.6,138.42,156.14]
[1741307373375,2.0,138.58,138.42,156.14]
[1741307373577,21.6,138.57,138.43,1.51650274]
[1741307373885,2.0,138.5,138.32,15.75961297]
[1741307374177,2.0,138.5,138.32,1.51716094]
[1741307374392,2.0,138.5,138.29,68.42430334]
[1741307374393,21.6,138.49,138.3,1.54721761]
[1741307374585,21.6,138.48,138.3,1.54721761]
[1741307374761,21.6,138.47,138.31,17.27809542]
[1741307374969,23.6,138.46,138.3,0.03]
[1741307375511,21.6,138.45,138.32,0.28432314]
[1741307375685,21.6,138.47,138.36,68.42430334]
[1741307375885,21.6,138.55,138.42,0.14216157]
[1741307376085,21.6,138.54,138.46,0.28432314]
[1741307376390,21.6,138.63,138.48,0.28432314]
[1741307376595,21.6,138.62,138.47,1.51532801]
[1741307376775,21.6,138.61,138.46,68.70862648]
[1741307376978,21.6,138.63,138.53,0.14216157]
[1741307377283,14.0282,138.77,138.55,0.28432314]
[1741307377284,21.6,138.62,138.55,0.28432314]
[1741307377484,21.6,138.62,138.56,1.51455625]
[1741307377685,21.6,138.61,138.6,312.0]
[1741307377883,2.0,138.66,138.54,156.24]
[1741307378093,21.6,138.65,138.54,156.24]
[1741307378466,137.6199494,138.71,138.55,0.14216157]
[1741307378467,21.6,138.64,138.55,0.14216157]
[1741307378698,21.6,138.63,138.56,1.51494176]
[1741307379007,21.6,138.62,138.55,0.28432314]
[1741307379292,21.6,138.61,138.55,1.65675027]
[1741307379595,21.6,138.6,138.54,156.24]
[1741307380066,21.6,138.59,138.54,156.24]
[1741307380267,2.0,138.68,138.54,156.24]
[1741307380268,21.6,138.58,138.54,156.24]
[1741307380487,21.6,138.67,138.55,1.79928679]
[1741307380796,21.6,138.66,138.6,312.0]
[1741307380991,21.6,138.65,138.54,156.24]
[1741307381190,2.0,138.74,138.55,0.14216157]
[1741307381394,2.0,138.74,138.54,156.24]
[1741307381395,0.14216157,138.66,138.54,156.24]
[1741307381633,0.14216157,138.64,138.54,156.24]
[1741307381853,21.6,138.65,138.46,5.8129]
[1741307382125,0.14216157,138.63,138.47,1.51557415]
[1741307382367,21.6,138.64,138.47,1.51557415]
[1741307382649,21.6,138.63,138.46,1.5155926]
[1741307382809,21.6,138.63,138.46,69.93989594]
[1741307383006,21.74216157,138.62,138.46,1.5155926]
[1741307383233,0.14216157,138.6,138.45,156.26]
[1741307383635,0.14216157,138.58,138.45,156.26]
[1741307383810,0.14216157,138.56,138.35,68.42430334]
[1741307384012,2.0,138.53,138.39,312.0]
[1741307384208,21.6,138.52,138.39,312.0]
[1741307385209,21.6,138.51,138.35,68.42430334]
[1741307385409,21.6,138.5,138.36,1.51666203]
[1741307385833,21.6,138.49,138.36,1.51666203]
[1741307386042,21.6,138.48,138.34,156.28]
[1741307386241,21.6,138.47,138.34,156.28]
[1741307386447,2.0,138.45,138.25,11.3055]
[1741307386610,21.6,138.44,138.31,68.42430334]
[1741307386930,21.6,138.46,138.33,0.28432314]
[1741307387108,21.6,138.45,138.35,0.14216157]
[1741307387299,21.6,138.45,138.36,0.14216157]
[1741307387511,21.6,138.44,138.36,0.14216157]
[1741307387720,21.6,138.43,138.3,0.03]
[1741307387892,21.6,138.42,138.35,68.42430334]
[1741307388217,21.6,138.41,138.33,1.51684171]
[1741307388413,21.6,138.52,138.38,0.14216157]
[1741307388588,21.6,138.51,138.38,1.6587355]
[1741307388922,21.6,138.5,138.39,68.56646491]
[1741307389110,21.6,138.57,138.45,0.28432314]
[1741307389288,21.6,138.56,138.47,68.70862648]
[1741307389487,21.6,138.56,138.47,0.14216157]
[1741307389711,21.6,138.55,138.44,0.14216157]
[1741307389887,21.6,138.55,138.45,1.658157]
[1741307390087,21.6,138.55,138.45,0.14216157]
[1741307390313,21.6,138.55,138.41,0.28432314]
[1741307390535,0.14216157,138.53,138.38,5.8037]
[1741307390683,21.6,138.52,138.37,1.51617335]
[1741307390883,21.6,138.51,138.43,0.28432314]
[1741307391185,21.6,138.5,138.49,312.0]
[1741307391391,21.6,138.6,138.49,312.0]
[1741307391615,2.14216157,138.58,138.49,312.0]
[1741307391786,2.14216157,138.56,138.35,68.42430334]
[1741307391982,2.14216157,138.56,138.3,7.6969]
[1741307391983,2.0,138.5,138.3,5.6969]
[1741307392186,21.6,138.49,138.3,74.12120334]
[1741307392488,21.6,138.48,138.3,5.6969]
[1741307392694,21.6,138.47,138.37,0.14216157]
[1741307392893,2.0,138.42,138.3,0.03]
[1741307393117,21.6,138.41,138.3,0.03]
[1741307393795,21.6,138.4,138.3,0.03]
[1741307393994,21.6,138.44,138.35,0.14216157]
[1741307394208,21.6,138.43,138.36,0.14216157]
[1741307394418,21.6,138.51,138.38,68.42430334]
[1741307394590,21.6,138.5,138.4,0.14216157]
[1741307394802,21.6,138.49,138.43,312.0]
[1741307395018,21.6,138.48,138.43,312.0]
[1741307395201,21.6,138.58,138.41,224.82430334]
[1741307395520,11.2965,138.59,138.41,224.82430334]
[1741307395521,21.6,138.57,138.42,0.28432314]
[1741307395706,0.14216157,138.55,138.42,0.14216157]
[1741307396027,2.14216157,138.53,138.41,156.4]
[1741307396319,21.74216157,138.52,138.41,156.4]
[1741307396623,21.6,138.51,138.41,156.4]
[1741307396839,21.6,138.5,138.41,156.4]
[1741307397339,21.6,138.49,138.41,156.4]
[1741307397631,21.6,138.48,138.41,156.4]
[1741307397941,21.6,138.47,138.41,156.4]
[1741307398235,21.6,138.46,138.41,468.4]
[1741307398408,21.6,138.45,138.41,312.0]
[1741307398737,21.6,138.44,138.35,68.42430334]
[1741307398922,21.6,138.43,138.33,156.42]
[1741307399102,21.6,138.42,138.33,156.42]
[1741307399306,21.6,138.41,138.36,0.03]
[1741307399511,21.6,138.4,138.36,0.03]
[1741307399809,21.6,138.39,138.36,0.03]
[1741307400023,21.6,138.38,138.36,0.03]
[1741307400223,135.9,138.37,138.36,0.03]
[1741307400427,135.87,138.35,138.24,161.9799]
[1741307400624,21.47,138.34,138.24,161.9799]
[1741307400831,21.47,138.33,138.24,161.9799]
[1741307401009,21.47,138.33,138.22,0.03]
[1741307401010,135.87,138.32,138.22,0.03]
[1741307401210,135.87,138.31,138.22,0.03]
[1741307401432,21.47,138.3,138.22,0.03]
[1741307401728,23.47,138.29,138.22,0.03]
[1741307401930,135.87,138.28,138.22,0.03]
[1741307402226,21.47,138.27,138.22,0.03]
[1741307402431,21.47,138.26,138.22,0.03]
[1741307402634,21.47,138.25,138.22,0.03]
[1741307402826,2.0,138.31,138.22,0.03]
[1741307403033,2.0,138.27,138.16,0.03]
[1741307403222,52.14216157,138.2,138.15,0.03]
[1741307403412,0.14216157,138.16,138.01,5.7071]
[1741307403639,0.14216157,138.14,138.01,5.7071]
[1741307403810,21.47,138.13,138.01,5.7071]
[1741307404013,204.23784747,138.2,138.02,1.52098877]
[1741307404014,21.47,138.12,138.02,1.52098877]
[1741307404210,21.47,138.11,138.01,5.7071]
[1741307404538,0.14216157,138.09,137.95,11.00923009]
[1741307404735,21.47,138.08,137.95,11.00923009]
[1741307405033,21.47,138.07,137.97,380.42430334]
[1741307405233,21.47,138.06,137.98,1.52081469]
[1741307405551,2.0,138.02,137.91,2.1328645]
[1741307405738,159.24898766,138.05,137.91,2.1328645]
[1741307405739,21.61216157,138.01,137.91,2.1328645]
[1741307405933,21.47,138.0,137.91,2.1328645]
[1741307406135,21.47,137.99,137.91,2.1328645]
[1741307406353,21.47,137.98,137.91,2.1328645]
[1741307406645,21.47,137.97,137.91,2.1328645]
[1741307406845,21.47,137.96,137.91,2.1328645]
[1741307407151,21.47,137.95,137.91,2.1328645]
[1741307407317,21.47,137.94,137.91,2.1328645]